[Event "Titled Tuesday Blitz February 01 B 2022"]
[White "Babazada, Khazar"]
[Black "Atanasov, Anthony"]
[WhiteFideId "13413554"]
[BlackFideId "2623897"]
[WhiteElo "2418"]
[BlackElo "1928"]
[Result "1/2-1/2"]
[Round "01"]
[TimeControl "180+1"]
[Date "2022.02.01"]
[WhiteClock "0:00:08"]
[BlackClock "0:00:06"]

1. e4 {[%clk 0:03:00]}  c5 {[%clk 0:02:56]} 2. Nf3 {[%clk 0:03:00]}  d6 {[%clk 0:02:56]} 3. d4 {[%clk 0:02:59]}  cxd4 {[%clk 0:02:57]} 4. Nxd4 {[%clk 0:03:00]}  Nf6 {[%clk 0:02:58]} 5. Nc3 {[%clk 0:02:57]}  a6 {[%clk 0:02:58]} 6. h3 {[%clk 0:02:57]}  e6 {[%clk 0:02:57]} 7. g4 {[%clk 0:02:56]}  Be7 {[%clk 0:02:52]} 8. Bg2 {[%clk 0:02:54]}  O-O {[%clk 0:02:48]} 9. O-O {[%clk 0:02:55]}  Qc7 {[%clk 0:02:37]} 10. g5 {[%clk 0:02:52]}  Nfd7 {[%clk 0:02:36]} 11. h4 {[%clk 0:02:52]}  Nc6 {[%clk 0:02:35]} 12. h5 {[%clk 0:02:51]}  Nxd4 {[%clk 0:02:32]} 13. Qxd4 {[%clk 0:02:52]}  Qc5 {[%clk 0:02:29]} 14. Qd2 {[%clk 0:02:51]}  b5 {[%clk 0:02:17]} 15. e5 {[%clk 0:02:42]}  d5 {[%clk 0:01:13]} 16. Re1 {[%clk 0:02:34]}  Bb7 {[%clk 0:01:09]} 17. Nd1 {[%clk 0:02:25]}  Rac8 {[%clk 0:01:01]} 18. c3 {[%clk 0:02:24]}  b4 {[%clk 0:00:52]} 19. cxb4 {[%clk 0:02:23]}  Qxb4 {[%clk 0:00:49]} 20. Qxb4 {[%clk 0:02:23]}  Bxb4 {[%clk 0:00:50]} 21. Nc3 {[%clk 0:02:23]}  Rxc3 {[%clk 0:00:48]} 22. bxc3 {[%clk 0:02:22]}  Bxc3 {[%clk 0:00:49]} 23. Ba3 {[%clk 0:02:22]}  Rc8 {[%clk 0:00:36]} 24. Rab1 {[%clk 0:02:21]}  Bxe1 {[%clk 0:00:36]} 25. Rxb7 {[%clk 0:02:19]}  Nxe5 {[%clk 0:00:34]} 26. f4 {[%clk 0:02:03]}  Nc4 {[%clk 0:00:26]} 27. Bc1 {[%clk 0:02:00]}  Bd2 {[%clk 0:00:19]} 28. Bxd2 {[%clk 0:01:58]}  Nxd2 {[%clk 0:00:20]} 29. f5 {[%clk 0:01:59]}  h6 {[%clk 0:00:15]} 30. fxe6 {[%clk 0:01:59]}  fxe6 {[%clk 0:00:16]} 31. Bh3 {[%clk 0:01:59]}  Nf3+ {[%clk 0:00:15]} 32. Kf2 {[%clk 0:01:55]}  Nxg5 {[%clk 0:00:15]} 33. Bg4 {[%clk 0:01:55]}  Rc2+ {[%clk 0:00:15]} 34. Ke3 {[%clk 0:01:54]}  Rxa2 {[%clk 0:00:12]} 35. Bd1 {[%clk 0:01:48]}  e5 {[%clk 0:00:06]} 36. Bb3 {[%clk 0:01:46]}  Ra3 {[%clk 0:00:06]} 37. Ke2 {[%clk 0:01:45]}  Ra5 {[%clk 0:00:07]} 38. Rd7 {[%clk 0:01:44]}  Ne4 {[%clk 0:00:05]} 39. Re7 {[%clk 0:01:30]}  Nf6 {[%clk 0:00:03]} 40. Rxe5 {[%clk 0:01:28]}  Rb5 {[%clk 0:00:03]} 41. Bc2 {[%clk 0:01:26]}  Rb8 {[%clk 0:00:02]} 42. Bg6 {[%clk 0:01:24]}  Kf8 {[%clk 0:00:02]} 43. Kd3 {[%clk 0:01:24]}  Rb7 {[%clk 0:00:03]} 44. Re6 {[%clk 0:01:21]}  Rd7 {[%clk 0:00:02]} 45. Rxa6 {[%clk 0:01:19]}  Ke7 {[%clk 0:00:01]} 46. Kd4 {[%clk 0:01:17]}  Rd6 {[%clk 0:00:01]} 47. Ra1 {[%clk 0:01:16]}  Rd7 {[%clk 0:00:02]} 48. Bf5 {[%clk 0:01:15]}  Rc7 {[%clk 0:00:02]} 49. Bg6 {[%clk 0:01:14]}  Kd6 {[%clk 0:00:02]} 50. Ra6+ {[%clk 0:01:12]}  Rc6 {[%clk 0:00:03]} 51. Ra7 {[%clk 0:01:12]}  Rc4+ {[%clk 0:00:03]} 52. Kd3 {[%clk 0:01:11]}  Rh4 {[%clk 0:00:04]} 53. Ke3 {[%clk 0:00:44]}  Nxh5 {[%clk 0:00:04]} 54. Bxh5 {[%clk 0:00:38]}  Rxh5 {[%clk 0:00:04]} 55. Rxg7 {[%clk 0:00:38]}  Rh3+ {[%clk 0:00:05]} 56. Kf4 {[%clk 0:00:35]}  Kc5 {[%clk 0:00:04]} 57. Rc7+ {[%clk 0:00:34]}  Kd4 {[%clk 0:00:03]} 58. Rc1 {[%clk 0:00:34]}  Rh2 {[%clk 0:00:03]} 59. Rd1+ {[%clk 0:00:31]}  Kc5 {[%clk 0:00:04]} 60. Kg3 {[%clk 0:00:28]}  Re2 {[%clk 0:00:04]} 61. Kf3 {[%clk 0:00:28]}  Re7 {[%clk 0:00:04]} 62. Rc1+ {[%clk 0:00:25]}  Kd4 {[%clk 0:00:05]} 63. Rd1+ {[%clk 0:00:26]}  Kc4 {[%clk 0:00:05]} 64. Rc1+ {[%clk 0:00:25]}  Kd4 {[%clk 0:00:06]} 65. Rd1+ {[%clk 0:00:25]}  Kc5 {[%clk 0:00:06]} 66. Rc1+ {[%clk 0:00:25]}  Kd6 {[%clk 0:00:07]} 67. Rh1 {[%clk 0:00:24]}  Re6 {[%clk 0:00:07]} 68. Rd1 {[%clk 0:00:24]}  Kc5 {[%clk 0:00:07]} 69. Rc1+ {[%clk 0:00:24]}  Kd4 {[%clk 0:00:08]} 70. Rd1+ {[%clk 0:00:25]}  Kc4 {[%clk 0:00:08]} 71. Rc1+ {[%clk 0:00:25]}  Kb5 {[%clk 0:00:08]} 72. Rb1+ {[%clk 0:00:24]}  Kc5 {[%clk 0:00:09]} 73. Rc1+ {[%clk 0:00:24]}  Kd6 {[%clk 0:00:09]} 74. Rd1 {[%clk 0:00:24]}  Re4 {[%clk 0:00:09]} 75. Rh1 {[%clk 0:00:23]}  Kc5 {[%clk 0:00:06]} 76. Rxh6 {[%clk 0:00:16]}  Kd4 {[%clk 0:00:06]} 77. Rh1 {[%clk 0:00:14]}  Ke5 {[%clk 0:00:04]} 78. Rd1 {[%clk 0:00:13]}  d4 {[%clk 0:00:04]} 79. Ra1 {[%clk 0:00:11]}  Re3+ {[%clk 0:00:04]} 80. Kf2 {[%clk 0:00:11]}  Ke4 {[%clk 0:00:04]} 81. Ra4 {[%clk 0:00:09]}  Kd5 {[%clk 0:00:04]} 82. Ra8 {[%clk 0:00:07]}  Re6 {[%clk 0:00:04]} 83. Ra4 {[%clk 0:00:07]}  Re5 {[%clk 0:00:04]} 84. Ra5+ {[%clk 0:00:05]}  Ke4 {[%clk 0:00:04]} 85. Rxe5+ {[%clk 0:00:06]}  Kxe5 {[%clk 0:00:04]} 86. Ke2 {[%clk 0:00:07]}  Ke4 {[%clk 0:00:05]} 87. Kd2 {[%clk 0:00:07]}  d3 {[%clk 0:00:06]} 88. Kd1 {[%clk 0:00:08]}  Ke3 {[%clk 0:00:05]} 89. Ke1 {[%clk 0:00:08]}  d2+ {[%clk 0:00:05]} 90. Kd1 {[%clk 0:00:08]}  Kd3 {[%clk 0:00:06]} 1/2-1/2


[Site "https://www.chess.com"]

[Event "Titled Tuesday Blitz February 01 B 2022"]
[White "Bodnar, Nikolay"]
[Black "Sadhwani, Raunak"]
[WhiteFideId "14106469"]
[BlackFideId "35093487"]
[WhiteElo "2296"]
[BlackElo "2616"]
[Result "0-1"]
[Round "01"]
[TimeControl "180+1"]
[Date "2022.02.01"]
[WhiteClock "0:00:13"]
[BlackClock "0:00:17"]

1. e4 {[%clk 0:03:00]}  e5 {[%clk 0:02:59]} 2. Nf3 {[%clk 0:03:00]}  Nc6 {[%clk 0:02:59]} 3. Bc4 {[%clk 0:03:00]}  d6 {[%clk 0:02:59]} 4. O-O {[%clk 0:02:59]}  Be7 {[%clk 0:02:58]} 5. d4 {[%clk 0:02:58]}  exd4 {[%clk 0:02:58]} 6. Nxd4 {[%clk 0:02:50]}  Nf6 {[%clk 0:02:59]} 7. Nc3 {[%clk 0:02:50]}  O-O {[%clk 0:02:58]} 8. Re1 {[%clk 0:02:49]}  Re8 {[%clk 0:02:57]} 9. Nxc6 {[%clk 0:02:46]}  bxc6 {[%clk 0:02:58]} 10. Bf4 {[%clk 0:02:34]}  Nd7 {[%clk 0:02:47]} 11. Qh5 {[%clk 0:02:20]}  Rf8 {[%clk 0:02:47]} 12. Rad1 {[%clk 0:02:19]}  g6 {[%clk 0:02:12]} 13. Qa5 {[%clk 0:02:18]}  Re8 {[%clk 0:01:52]} 14. e5 {[%clk 0:01:57]}  Nb6 {[%clk 0:01:42]} 15. Bb3 {[%clk 0:01:26]}  d5 {[%clk 0:01:33]} 16. Ne4 {[%clk 0:01:26]}  Bf5 {[%clk 0:01:32]} 17. Nf6+ {[%clk 0:01:26]}  Bxf6 {[%clk 0:01:32]} 18. exf6 {[%clk 0:01:27]}  Qxf6 {[%clk 0:01:28]} 19. Bxc7 {[%clk 0:01:26]}  Qxb2 {[%clk 0:01:20]} 20. Qc5 {[%clk 0:01:17]}  Qf6 {[%clk 0:01:13]} 21. a4 {[%clk 0:01:05]}  h5 {[%clk 0:01:00]} 22. a5 {[%clk 0:00:54]}  Nd7 {[%clk 0:01:00]} 23. Rxe8+ {[%clk 0:00:54]}  Rxe8 {[%clk 0:00:58]} 24. Qxa7 {[%clk 0:00:55]}  Qc3 {[%clk 0:00:53]} 25. h3 {[%clk 0:00:47]}  Bxc2 {[%clk 0:00:46]} 26. Bxc2 {[%clk 0:00:47]}  Qxc2 {[%clk 0:00:46]} 27. Qd4 {[%clk 0:00:46]}  Re4 {[%clk 0:00:37]} 28. Qa1 {[%clk 0:00:41]}  Ra4 {[%clk 0:00:33]} 29. Qc1 {[%clk 0:00:20]}  Qxc1 {[%clk 0:00:33]} 30. Rxc1 {[%clk 0:00:21]}  c5 {[%clk 0:00:34]} 31. Re1 {[%clk 0:00:21]}  c4 {[%clk 0:00:21]} 32. Re7 {[%clk 0:00:21]}  c3 {[%clk 0:00:21]} 33. Re8+ {[%clk 0:00:17]}  Kh7 {[%clk 0:00:18]} 34. Rc8 {[%clk 0:00:18]}  Rc4 {[%clk 0:00:17]} 35. a6 {[%clk 0:00:15]}  c2 {[%clk 0:00:17]} 36. a7 {[%clk 0:00:15]}  c1=Q+ {[%clk 0:00:17]} 37. Kh2 {[%clk 0:00:16]}  Rxc7 {[%clk 0:00:18]} 38. a8=Q {[%clk 0:00:12]}  Rxc8 {[%clk 0:00:17]} 39. Qxd5 {[%clk 0:00:13]}  Qf4+ {[%clk 0:00:17]} 0-1


[Site "https://www.chess.com"]

[Event "Titled Tuesday Blitz February 01 B 2022"]
[White "Bortnyk, Olexandr"]
[Black "Gracia Alvarez, Gerardo Antonio"]
[WhiteFideId "14120828"]
[BlackFideId "5109124"]
[WhiteElo "2723"]
[BlackElo "2139"]
[Result "1-0"]
[Round "01"]
[TimeControl "180+1"]
[Date "2022.02.01"]
[WhiteClock "0:01:59"]
[BlackClock "0:00:43"]

1. e4 {[%clk 0:02:59]}  c5 {[%clk 0:02:59]} 2. c3 {[%clk 0:02:59]}  Nf6 {[%clk 0:02:58]} 3. e5 {[%clk 0:02:59]}  Nd5 {[%clk 0:02:59]} 4. d4 {[%clk 0:03:00]}  cxd4 {[%clk 0:02:58]} 5. Nf3 {[%clk 0:03:00]}  Nc6 {[%clk 0:02:56]} 6. cxd4 {[%clk 0:03:00]}  d6 {[%clk 0:02:56]} 7. Bc4 {[%clk 0:03:00]}  dxe5 {[%clk 0:02:56]} 8. dxe5 {[%clk 0:02:58]}  Be6 {[%clk 0:02:55]} 9. O-O {[%clk 0:02:53]}  g6 {[%clk 0:02:55]} 10. Ng5 {[%clk 0:02:51]}  Bg7 {[%clk 0:02:51]} 11. Nxe6 {[%clk 0:02:46]}  fxe6 {[%clk 0:02:52]} 12. Nc3 {[%clk 0:02:34]}  Nc7 {[%clk 0:01:47]} 13. f4 {[%clk 0:02:22]}  Qxd1 {[%clk 0:01:40]} 14. Rxd1 {[%clk 0:02:23]}  O-O {[%clk 0:01:35]} 15. Be3 {[%clk 0:02:18]}  Rfd8 {[%clk 0:01:31]} 16. a3 {[%clk 0:02:15]}  Kf8 {[%clk 0:01:24]} 17. g3 {[%clk 0:02:11]}  Ke8 {[%clk 0:01:22]} 18. Ne4 {[%clk 0:02:07]}  Nd5 {[%clk 0:01:07]} 19. Bf2 {[%clk 0:02:07]}  h6 {[%clk 0:00:57]} 20. Nc5 {[%clk 0:02:07]}  Kf7 {[%clk 0:00:57]} 21. Nxb7 {[%clk 0:02:06]}  Rdb8 {[%clk 0:00:57]} 22. Nc5 {[%clk 0:02:05]}  Rxb2 {[%clk 0:00:57]} 23. Nxe6 {[%clk 0:01:58]}  Nc3 {[%clk 0:00:43]} 24. Nc7+ {[%clk 0:01:59]} 1-0


[Site "https://www.chess.com"]

[Event "Titled Tuesday Blitz February 01 B 2022"]
[White "Fernandez, Nelson Wilfredo"]
[Black "Svane, Rasmus"]
[WhiteFideId "8401594"]
[BlackFideId "4657101"]
[WhiteElo "1899"]
[BlackElo "2645"]
[Result "1-0"]
[Round "01"]
[TimeControl "180+1"]
[Date "2022.02.01"]
[WhiteClock "0:00:22"]
[BlackClock "0:00:15"]

1. d4 {[%clk 0:03:00]}  Nf6 {[%clk 0:02:59]} 2. c4 {[%clk 0:03:01]}  e6 {[%clk 0:02:59]} 3. Nc3 {[%clk 0:03:01]}  Bb4 {[%clk 0:02:59]} 4. a3 {[%clk 0:02:59]}  Bxc3+ {[%clk 0:02:58]} 5. bxc3 {[%clk 0:02:59]}  b6 {[%clk 0:02:56]} 6. f3 {[%clk 0:03:00]}  c5 {[%clk 0:02:49]} 7. e4 {[%clk 0:02:58]}  d6 {[%clk 0:02:48]} 8. Bd3 {[%clk 0:02:39]}  O-O {[%clk 0:02:45]} 9. Ne2 {[%clk 0:02:39]}  Ba6 {[%clk 0:02:43]} 10. Bg5 {[%clk 0:02:15]}  Nc6 {[%clk 0:02:36]} 11. f4 {[%clk 0:01:58]}  Qc7 {[%clk 0:02:08]} 12. Bxf6 {[%clk 0:01:50]}  gxf6 {[%clk 0:02:09]} 13. e5 {[%clk 0:01:50]}  fxe5 {[%clk 0:01:51]} 14. fxe5 {[%clk 0:01:47]}  dxe5 {[%clk 0:01:51]} 15. O-O {[%clk 0:01:31]}  Rad8 {[%clk 0:01:13]} 16. Rf6 {[%clk 0:01:00]}  Qe7 {[%clk 0:00:58]} 17. Qf1 {[%clk 0:00:55]}  Kg7 {[%clk 0:00:58]} 18. Ng3 {[%clk 0:00:53]}  cxd4 {[%clk 0:00:46]} 19. Nh5+ {[%clk 0:00:31]}  Kh8 {[%clk 0:00:46]} 20. Bxh7 {[%clk 0:00:30]}  Kxh7 {[%clk 0:00:27]} 21. Qd3+ {[%clk 0:00:23]}  Kg8 {[%clk 0:00:15]} 22. Qg3+ {[%clk 0:00:22]}  Kh8 {[%clk 0:00:15]} 23. Qg7# {[%clk 0:00:22]} 1-0


[Site "https://www.chess.com"]

[Event "Titled Tuesday Blitz February 01 B 2022"]
[White "Kovanova, Baira"]
[Black "Niemann, Hans Moke"]
[WhiteFideId "4164083"]
[BlackFideId "2093596"]
[WhiteElo "2190"]
[BlackElo "2636"]
[Result "0-1"]
[Round "01"]
[TimeControl "180+1"]
[Date "2022.02.01"]
[WhiteClock "0:00:22"]
[BlackClock "0:01:03"]

1. e4 {[%clk 0:03:00]}  c5 {[%clk 0:02:57]} 2. Nf3 {[%clk 0:03:00]}  d6 {[%clk 0:02:58]} 3. d4 {[%clk 0:02:59]}  cxd4 {[%clk 0:02:58]} 4. Nxd4 {[%clk 0:03:00]}  Nf6 {[%clk 0:02:59]} 5. Nc3 {[%clk 0:03:00]}  Nc6 {[%clk 0:03:00]} 6. Bg5 {[%clk 0:02:59]}  e6 {[%clk 0:03:00]} 7. Qd2 {[%clk 0:02:57]}  a6 {[%clk 0:03:00]} 8. O-O-O {[%clk 0:02:55]}  Bd7 {[%clk 0:02:56]} 9. f4 {[%clk 0:02:49]}  Be7 {[%clk 0:02:51]} 10. Nb3 {[%clk 0:02:19]}  b5 {[%clk 0:02:49]} 11. Bxf6 {[%clk 0:02:12]}  gxf6 {[%clk 0:02:50]} 12. Bd3 {[%clk 0:02:06]}  Qb6 {[%clk 0:02:47]} 13. f5 {[%clk 0:02:05]}  Ne5 {[%clk 0:02:22]} 14. Rhf1 {[%clk 0:01:43]}  a5 {[%clk 0:02:18]} 15. Kb1 {[%clk 0:01:37]}  a4 {[%clk 0:02:17]} 16. Nc1 {[%clk 0:01:36]}  b4 {[%clk 0:02:17]} 17. N3e2 {[%clk 0:01:34]}  a3 {[%clk 0:02:15]} 18. b3 {[%clk 0:01:32]}  h5 {[%clk 0:02:07]} 19. h3 {[%clk 0:01:31]}  Rc8 {[%clk 0:01:51]} 20. Nf4 {[%clk 0:01:25]}  Qd4 {[%clk 0:01:50]} 21. c4 {[%clk 0:01:20]}  bxc3 {[%clk 0:01:47]} 22. Qc2 {[%clk 0:01:19]}  Qb6 {[%clk 0:01:29]} 23. fxe6 {[%clk 0:01:17]}  fxe6 {[%clk 0:01:28]} 24. Nce2 {[%clk 0:01:14]}  Qb4 {[%clk 0:01:25]} 25. Nc1 {[%clk 0:00:50]}  h4 {[%clk 0:01:19]} 26. Be2 {[%clk 0:00:49]}  Rg8 {[%clk 0:01:14]} 27. Ncd3 {[%clk 0:00:43]}  Qxe4 {[%clk 0:01:11]} 28. Bh5+ {[%clk 0:00:38]}  Kd8 {[%clk 0:01:11]} 29. Nxe5 {[%clk 0:00:38]}  Qxc2+ {[%clk 0:01:11]} 30. Kxc2 {[%clk 0:00:38]}  fxe5 {[%clk 0:01:11]} 31. Ng6 {[%clk 0:00:37]}  Be8 {[%clk 0:01:12]} 32. Nxe7 {[%clk 0:00:28]}  Rxg2+ {[%clk 0:01:09]} 33. Kc1 {[%clk 0:00:27]}  Kxe7 {[%clk 0:01:04]} 34. Bxe8 {[%clk 0:00:24]}  Rxe8 {[%clk 0:01:05]} 35. Rd3 {[%clk 0:00:23]}  Rc8 {[%clk 0:01:04]} 36. Rdf3 {[%clk 0:00:22]}  d5 {[%clk 0:01:04]} 37. Rf7+ {[%clk 0:00:22]}  Kd6 {[%clk 0:01:05]} 38. Ra7 {[%clk 0:00:22]}  Rxa2 {[%clk 0:01:05]} 39. Rff7 {[%clk 0:00:22]}  e4 {[%clk 0:01:03]} 0-1


[Site "https://www.chess.com"]

[Event "Titled Tuesday Blitz February 01 B 2022"]
[White "Maidel, Anton"]
[Black "Grigoriants, Sergey"]
[WhiteFideId "4125290"]
[BlackFideId "4130804"]
[WhiteElo "2336"]
[BlackElo "2502"]
[Result "0-1"]
[Round "01"]
[TimeControl "180+1"]
[Date "2022.02.01"]
[WhiteClock "0:01:15"]
[BlackClock "0:00:52"]

1. e4 {[%clk 0:02:59]}  c6 {[%clk 0:02:56]} 2. d3 {[%clk 0:02:58]}  d5 {[%clk 0:02:57]} 3. Nd2 {[%clk 0:02:59]}  e5 {[%clk 0:02:56]} 4. Ngf3 {[%clk 0:02:59]}  Bd6 {[%clk 0:02:56]} 5. g3 {[%clk 0:02:59]}  Nf6 {[%clk 0:02:55]} 6. Bg2 {[%clk 0:03:00]}  O-O {[%clk 0:02:55]} 7. O-O {[%clk 0:03:00]}  Re8 {[%clk 0:02:55]} 8. Re1 {[%clk 0:02:59]}  d4 {[%clk 0:02:52]} 9. Nc4 {[%clk 0:02:59]}  Bc7 {[%clk 0:02:53]} 10. a4 {[%clk 0:02:56]}  c5 {[%clk 0:02:35]} 11. Bg5 {[%clk 0:02:55]}  Nc6 {[%clk 0:02:33]} 12. Nh4 {[%clk 0:02:53]}  h6 {[%clk 0:02:32]} 13. Bd2 {[%clk 0:02:45]}  Bg4 {[%clk 0:02:27]} 14. Bf3 {[%clk 0:02:38]}  Be6 {[%clk 0:02:25]} 15. b3 {[%clk 0:02:36]}  a6 {[%clk 0:02:20]} 16. Nf5 {[%clk 0:02:24]}  Qd7 {[%clk 0:02:11]} 17. Nxh6+ {[%clk 0:02:15]}  gxh6 {[%clk 0:02:10]} 18. Bxh6 {[%clk 0:02:15]}  Nh7 {[%clk 0:02:06]} 19. Bh5 {[%clk 0:02:12]}  b5 {[%clk 0:01:59]} 20. Nd2 {[%clk 0:02:07]}  Ba5 {[%clk 0:01:52]} 21. f4 {[%clk 0:02:03]}  Bxd2 {[%clk 0:01:34]} 22. Qxd2 {[%clk 0:02:02]}  Bg4 {[%clk 0:01:34]} 23. Bxg4 {[%clk 0:01:47]}  Qxg4 {[%clk 0:01:35]} 24. Rf1 {[%clk 0:01:45]}  Qh5 {[%clk 0:01:08]} 25. axb5 {[%clk 0:01:15]}  axb5 {[%clk 0:01:04]} 26. Rxa8 {[%clk 0:01:15]}  Rxa8 {[%clk 0:01:04]} 27. fxe5 {[%clk 0:01:15]}  Nxe5 {[%clk 0:00:58]} 28. Qf4 {[%clk 0:01:15]}  Ra6 {[%clk 0:00:52]} 0-1


[Site "https://www.chess.com"]

[Event "Titled Tuesday Blitz February 01 B 2022"]
[White "Martinez Alcantara, Jose Eduardo"]
[Black "Bilan, Danila"]
[WhiteFideId "3805662"]
[BlackFideId "24161918"]
[WhiteElo "2690"]
[BlackElo "2164"]
[Result "1-0"]
[Round "01"]
[TimeControl "180+1"]
[Date "2022.02.01"]
[WhiteClock "0:02:33"]
[BlackClock "0:00:25"]

1. e4 {[%clk 0:03:00]}  c6 {[%clk 0:02:56]} 2. d4 {[%clk 0:02:59]}  d5 {[%clk 0:02:57]} 3. e5 {[%clk 0:03:00]}  Bf5 {[%clk 0:02:57]} 4. h4 {[%clk 0:03:00]}  h5 {[%clk 0:02:57]} 5. Bd3 {[%clk 0:02:59]}  Bxd3 {[%clk 0:02:56]} 6. Qxd3 {[%clk 0:03:00]}  Qa5+ {[%clk 0:02:56]} 7. b4 {[%clk 0:03:00]}  Qa6 {[%clk 0:02:57]} 8. e6 {[%clk 0:03:00]}  Qxd3 {[%clk 0:02:52]} 9. cxd3 {[%clk 0:03:00]}  Na6 {[%clk 0:02:43]} 10. exf7+ {[%clk 0:02:54]}  Kxf7 {[%clk 0:02:41]} 11. a3 {[%clk 0:02:55]}  e6 {[%clk 0:02:25]} 12. Nd2 {[%clk 0:02:54]}  Bd6 {[%clk 0:02:19]} 13. Ndf3 {[%clk 0:02:54]}  Re8 {[%clk 0:02:12]} 14. Nh3 {[%clk 0:02:54]}  Nf6 {[%clk 0:02:06]} 15. O-O {[%clk 0:02:49]}  Ng4 {[%clk 0:02:02]} 16. Re1 {[%clk 0:02:48]}  Nb8 {[%clk 0:01:48]} 17. Bf4 {[%clk 0:02:45]}  Bxf4 {[%clk 0:01:32]} 18. Nxf4 {[%clk 0:02:45]}  Rh6 {[%clk 0:01:25]} 19. Ng5+ {[%clk 0:02:45]}  Kg8 {[%clk 0:01:19]} 20. f3 {[%clk 0:02:45]}  Nf6 {[%clk 0:01:07]} 21. Nfxe6 {[%clk 0:02:45]}  Nh7 {[%clk 0:01:02]} 22. Nf4 {[%clk 0:02:43]}  Rf8 {[%clk 0:00:58]} 23. Nfe6 {[%clk 0:02:35]}  Re8 {[%clk 0:00:52]} 24. Nc5 {[%clk 0:02:35]}  Rxe1+ {[%clk 0:00:39]} 25. Rxe1 {[%clk 0:02:36]}  b6 {[%clk 0:00:37]} 26. Re8+ {[%clk 0:02:36]}  Nf8 {[%clk 0:00:37]} 27. Rxb8 {[%clk 0:02:35]}  bxc5 {[%clk 0:00:36]} 28. dxc5 {[%clk 0:02:36]}  Rf6 {[%clk 0:00:32]} 29. Ra8 {[%clk 0:02:35]}  Rf4 {[%clk 0:00:25]} 30. Ne6 {[%clk 0:02:33]} 1-0


[Site "https://www.chess.com"]

[Event "Titled Tuesday Blitz February 01 B 2022"]
[White "Nesterov, Arseniy"]
[Black "Glek, Igor"]
[WhiteFideId "24198455"]
[BlackFideId "4100484"]
[WhiteElo "2489"]
[BlackElo "2215"]
[Result "1-0"]
[Round "01"]
[TimeControl "180+1"]
[Date "2022.02.01"]
[WhiteClock "0:00:11"]
[BlackClock "0:00:01"]

1. d4 {[%clk 0:03:00]}  e6 {[%clk 0:02:59]} 2. c4 {[%clk 0:03:01]}  f5 {[%clk 0:02:59]} 3. Nf3 {[%clk 0:03:00]}  Nf6 {[%clk 0:02:59]} 4. g3 {[%clk 0:02:59]}  Be7 {[%clk 0:02:59]} 5. Bg2 {[%clk 0:03:00]}  O-O {[%clk 0:02:59]} 6. O-O {[%clk 0:03:00]}  d6 {[%clk 0:03:00]} 7. Nc3 {[%clk 0:02:58]}  Ne4 {[%clk 0:02:59]} 8. Nxe4 {[%clk 0:02:41]}  fxe4 {[%clk 0:02:58]} 9. Nd2 {[%clk 0:02:42]}  d5 {[%clk 0:02:54]} 10. f3 {[%clk 0:02:42]}  Nc6 {[%clk 0:02:53]} 11. e3 {[%clk 0:02:17]}  exf3 {[%clk 0:02:52]} 12. Nxf3 {[%clk 0:02:18]}  Qd6 {[%clk 0:02:48]} 13. b3 {[%clk 0:02:10]}  b6 {[%clk 0:02:39]} 14. Bb2 {[%clk 0:02:05]}  a5 {[%clk 0:02:16]} 15. Rc1 {[%clk 0:01:59]}  Ba6 {[%clk 0:01:57]} 16. Re1 {[%clk 0:01:54]}  Rad8 {[%clk 0:01:46]} 17. Qe2 {[%clk 0:01:40]}  Qd7 {[%clk 0:01:30]} 18. Qc2 {[%clk 0:01:24]}  Bb7 {[%clk 0:01:04]} 19. a3 {[%clk 0:01:17]}  Bf6 {[%clk 0:00:52]} 20. Rf1 {[%clk 0:01:07]}  Kh8 {[%clk 0:00:50]} 21. Rcd1 {[%clk 0:00:50]}  Qe7 {[%clk 0:00:43]} 22. e4 {[%clk 0:00:47]}  dxe4 {[%clk 0:00:28]} 23. Qxe4 {[%clk 0:00:43]}  Ba8 {[%clk 0:00:18]} 24. Qe3 {[%clk 0:00:37]}  Qd7 {[%clk 0:00:11]} 25. Rfe1 {[%clk 0:00:31]}  Rfe8 {[%clk 0:00:08]} 26. g4 {[%clk 0:00:25]}  h6 {[%clk 0:00:06]} 27. h4 {[%clk 0:00:26]}  Qf7 {[%clk 0:00:03]} 28. g5 {[%clk 0:00:25]}  hxg5 {[%clk 0:00:02]} 29. hxg5 {[%clk 0:00:26]}  Be7 {[%clk 0:00:02]} 30. Qxe6 {[%clk 0:00:15]}  Qxe6 {[%clk 0:00:02]} 31. Rxe6 {[%clk 0:00:16]}  Bd6 {[%clk 0:00:02]} 32. Rxe8+ {[%clk 0:00:13]}  Rxe8 {[%clk 0:00:02]} 33. d5 {[%clk 0:00:14]}  Ne7 {[%clk 0:00:01]} 34. Ne5 {[%clk 0:00:11]} 1-0


[Site "https://www.chess.com"]